fUSD/lending_fUSD_20251013
["ID","MTS","AMOUNT","RATE_DAILY","PERIOD"]
[391150785,1760398232796,-151.0,0.00018893,2]
[391150786,1760398232806,-151.0,0.00018893,2]
[391150787,1760398232815,-151.0,0.00018893,2]
[391150788,1760398232825,-151.0,0.00018893,2]
[391150789,1760398232834,-151.0,0.00018893,2]
[391150790,1760398232843,-151.0,0.00018893,2]
[391150791,1760398232853,-151.0,0.00018893,2]
[391150792,1760398232862,-151.0,0.00018893,2]
[391150793,1760398232871,-151.0,0.00018893,2]
[391150794,1760398232880,-151.0,0.00018893,2]
[391150795,1760398232889,-151.0,0.00018893,2]
[391150796,1760398232899,-225.816144,0.00018893,2]
[391150797,1760398232908,-500.0,0.000189,2]
[391150798,1760398232917,-500.0,0.000189,2]
[391150799,1760398232927,-500.0,0.000189,2]
[391150800,1760398232940,-500.40318077,0.000189,2]
[391150801,1760398232953,-2546.01415435,0.00018904,2]
[391150802,1760398232963,-296.14,0.00020187,2]
[391150803,1760398232972,-503.3794454,0.00023858,2]
[391150804,1760398232982,-595.28979283,0.00024,2]
[391150805,1760398232991,-5513.0,0.000242,5]
[391150806,1760398233000,-2979.13,0.00024728,2]
[391150807,1760398233009,-1562.99165396,0.00024802,2]
[391150808,1760398233018,-500.0,0.00024932,2]
[391150809,1760398233027,-522.15,0.00025751,2]
[391150810,1760398233036,-250.0,0.00026073,2]
[391150811,1760398233046,-994.19,0.00026491,2]
[391150812,1760398233056,-296.14,0.00026676,2]
[391150813,1760398233065,-150.0,0.00026704,4]
[391150814,1760398233074,-150.0,0.00026704,4]
[391150815,1760398233083,-150.0,0.00026704,4]
[391150816,1760398233092,-150.0,0.00026704,4]
[391150817,1760398233102,-150.0,0.00026704,4]
[391150818,1760398233111,-503.3794454,0.00026816,2]
[391150819,1760398233121,-10719.09558071,0.00027047,2]
[391150820,1760398233130,-559.39283103,0.00027062,2]
[391150821,1760398233139,-670.0752085,0.00027067,2]
[391150822,1760398233148,-167.81784931,0.00027071,2]
[391150823,1760398233158,-670.0752085,0.0002708,2]
[391150824,1760398233167,-559.39283103,0.00027091,2]
[391150825,1760398233177,-10719.09558071,0.00027096,2]
[391150826,1760398233185,-10719.09558071,0.00027111,2]
[391150827,1760398233195,-201.02256255,0.00027115,2]
[391150828,1760398233204,-559.39283103,0.00027127,2]
[391150829,1760398233213,-167.81784931,0.00027135,2]
[391150830,1760398233222,-670.0752085,0.00027154,2]
[391150831,1760398233231,-201.02256255,0.00027157,2]
[391150832,1760398233241,-167.81784931,0.00027181,2]
[391150833,1760398233250,-201.02256255,0.00027199,2]
[391150834,1760398233259,-641.38715096,0.00027604,2]
[391150835,1760398233269,-179.82,0.00027621,2]
[391150836,1760398233278,-500.0,0.00027727,7]
[391150837,1760398233287,-1292.129,0.00028001,18]
[391150838,1760398233297,-185.099,0.00028001,18]
[391150839,1760398233306,-1000.0,0.00028001,7]
[391150840,1760398233315,-322.6107,0.00028024,2]
[391150841,1760398233324,-644.79446246,0.00028024,2]
[391150842,1760398233333,-151.0,0.00028024,2]
[391150843,1760398233343,-257.91778498,0.00028024,2]
[391150844,1760398233352,-670.58624095,0.00028024,2]
[391150845,1760398233362,-6899.59,0.00028047,2]
[391150846,1760398233371,-150.0,0.00028188,7]
[391150847,1760398233381,-785.21,0.00028341,2]
[391150848,1760398233391,-2953.11815655,0.00028409,2]
[391150849,1760398233400,-1475.0,0.00028518,7]
[391150850,1760398233411,-500.0,0.00028549,7]
[391150851,1760398233420,-1475.0,0.00028616,7]
[391150852,1760398233430,-698.5,0.00028649,2]
[391150853,1760398233439,-1476.0,0.00028657,7]
[391150854,1760398233448,-9992.4630781,0.00028661,2]
[391150855,1760398233458,-1475.0,0.00028664,2]
[391150856,1760398233468,-1645.0,0.00028673,7]
[391150857,1760398233477,-1475.0,0.00028678,2]
[391150858,1760398233486,-1475.0,0.00028701,2]
[391150859,1760398233496,-1880.36843033,0.00028744,2]
[391150860,1760398233506,-1000.0,0.00028823,7]
[391150861,1760398233516,-170.8508465,0.00028854,3]
[391150862,1760398233525,-175.94,0.00028878,2]
[391150863,1760398233534,-150.0,0.00028878,2]
[391150864,1760398233544,-546.25,0.00028878,2]
[391150865,1760398233553,-173.99,0.00028878,2]
[391150866,1760398233562,-156.72,0.00028878,2]
[391150867,1760398233571,-150.0,0.00028878,2]
[391150868,1760398233580,-413.39,0.00028878,2]
[391150869,1760398233590,-168.14,0.00028878,2]
[391150870,1760398233600,-175.94,0.00028878,2]
[391150871,1760398233609,-150.0,0.00028878,2]
[391150872,1760398233618,-168.14,0.00028878,2]
[391150873,1760398233627,-413.39,0.00028878,2]
[391150874,1760398233636,-150.0,0.00028878,2]
[391150875,1760398233645,-150.0,0.00028878,2]
[391150876,1760398233655,-175.94,0.00028878,2]
[391150877,1760398233665,-150.0,0.00028878,2]
[391150878,1760398233675,-168.14,0.00028878,2]
[391150879,1760398233684,-150.0,0.00028878,2]
[391150880,1760398233693,-150.0,0.00028878,2]
[391150881,1760398233703,-150.0,0.00028878,2]
[391150882,1760398233712,-413.39,0.00028878,2]
[391150883,1760398233721,-175.94,0.00028878,2]
[391150884,1760398233731,-150.0,0.00028878,2]
[391150885,1760398233740,-168.14,0.00028878,2]
[391150886,1760398233749,-413.39,0.00028878,2]
[391150887,1760398233758,-150.0,0.00028878,2]
[391150888,1760398233767,-175.94,0.00028878,2]
[391150889,1760398233777,-168.14,0.00028878,2]
[391150890,1760398233786,-413.39,0.00028878,2]
[391150891,1760398233795,-175.94,0.00028878,2]
[391150892,1760398233804,-175.94,0.00028878,2]
[391150893,1760398233813,-175.94,0.00028878,2]
[391150894,1760398233823,-175.78,0.00028878,2]
[391150895,1760398233831,-500.0,0.00028904,2]
[391150896,1760398233841,-529.54,0.00028999,2]
[391150897,1760398233850,-23742.71246203,0.00029,2]
[391150898,1760398233859,-1475.0,0.0002906,2]
[391150899,1760398233868,-447.62045917,0.0002912,2]
[391150900,1760398233877,-503.53652257,0.0002912,2]
[391150901,1760398233886,-500.0,0.0002912,2]
[391150902,1760398233895,-299.84923324,0.0002912,2]
[391150903,1760398233905,-500.0,0.0002912,2]
[391150904,1760398233915,-500.0,0.0002912,2]
[391150905,1760398233923,-500.0,0.0002912,2]
[391150906,1760398233937,-500.0,0.0002912,2]
[391150907,1760398233947,-500.0,0.0002912,2]
[391150908,1760398233958,-500.0,0.0002912,2]
[391150909,1760398233970,-500.0,0.0002912,2]
[391150910,1760398233980,-405.74429449,0.0002912,2]
[391150911,1760398233991,-500.0,0.0002912,2]
[391150912,1760398234000,-500.0,0.0002912,2]
[391150913,1760398234012,-500.0,0.0002912,2]
[391150914,1760398234026,-500.0,0.0002912,2]
[391150915,1760398234035,-722.06298046,0.00029121,7]
[391150916,1760398234045,-2500.0,0.00029121,7]
[391150917,1760398234054,-1817.531616,0.0002914,2]
[391150918,1760398234065,-1477.24821063,0.00029146,2]
[391150919,1760398234080,-167.75178937,0.00029146,2]
[391150920,1760398234095,-1287.47637208,0.00029225,120]
[391150921,1760398234108,-712.52362792,0.00029225,120]
[391150922,1760398234118,-500.0,0.00029273,120]
[391150923,1760398234127,-312.61368476,0.00029273,120]
[391150924,1760398234139,-187.38631524,0.00029273,120]
[391150925,1760398234150,-404.97574621,0.00029273,120]
[391150926,1760398234162,-95.02425379,0.00029273,120]
[391150927,1760398234524,-157.12068079,0.000293,2]
[391150928,1760398234541,-842.87931921,0.000293,2]
[391150929,1760398234551,-500.0,0.00029371,7]
[391150930,1760398234560,-200.0,0.00029402,2]
[391150931,1760398234569,-151.0,0.00029463,7]
[391150932,1760398234578,-3082.6543898,0.00029466,2]
[391150933,1760398234587,-567.72757485,0.00029479,2]
[391150934,1760398234599,-298.86,0.00029479,2]
[391150935,1760398234620,-1071.49293044,0.00029479,2]
[391151006,1760398239538,-450.58499,0.00029479,2]
[391151008,1760398239549,-693.98889445,0.00029479,2]
[391151010,1760398239558,-191.70463041,0.0002949,2]
[391151013,1760398239569,-1283.29536959,0.0002949,2]
[391151015,1760398239578,-3082.65438974,0.00029492,2]
[391151017,1760398239588,-499.99999901,0.000295,30]
[391151019,1760398239597,-42.6496127,0.00029505,2]
[391151033,1760398240211,-442.38125103,0.00029505,2]
[391151034,1760398240222,-2597.62352601,0.00029505,2]
[391151035,1760398240232,-3082.65438974,0.00029518,2]
[391151036,1760398240242,-3082.65438974,0.00029532,2]
[391151037,1760398240251,-384.93500936,0.00029535,2]
[391151038,1760398240260,-384.9350093,0.00029542,2]
[391151039,1760398240270,-3082.65438974,0.00029545,2]
[391151040,1760398240279,-164.73092235,0.00029545,2]
[391151041,1760398240288,-175.7718288,0.00029549,2]
[391151042,1760398240299,-209.1631805,0.00029549,2]
[391151043,1760398240309,-164.73092233,0.00029552,2]
[391151044,1760398240318,-384.9350093,0.00029556,2]
[391151045,1760398240327,-82.17088787,0.00029558,2]
[391151046,1760398240339,-3000.48350187,0.00029558,2]
[391151047,1760398240350,-164.73092233,0.00029559,2]
[391151048,1760398240365,-265.06359033,0.00029562,2]
[391151051,1760398240765,-2148.6,0.00029562,2]
[391151052,1760398240780,-2586.33640967,0.00029562,2]
[391151053,1760398240789,-384.9350093,0.00029563,2]
[391151054,1760398240798,-164.73092233,0.00029566,2]
[391151055,1760398240807,-384.9350093,0.0002957,2]
[391151056,1760398240816,-3082.65438974,0.00029571,2]
[391151057,1760398240829,-164.73092233,0.00029573,2]
[391151058,1760398240838,-384.9350093,0.00029577,2]
[391151059,1760398240848,-164.73092233,0.0002958,2]
[391151060,1760398240856,-289.0,0.00029584,5]
[391151061,1760398240865,-384.9350093,0.00029584,2]
[391151062,1760398240875,-3082.65438974,0.00029584,2]
[391151063,1760398240883,-405.75791811,0.00029584,2]
[391151064,1760398240893,-151.91126268,0.00029584,2]
[391151065,1760398240902,-47712.63824404,0.0002959,2]
[391151066,1760398240912,-198.9727085,0.00029598,2]
[391151067,1760398240922,-260.72778314,0.00029598,2]
[391151068,1760398240933,-150.0,0.00029598,2]
[391151069,1760398240943,-150.0,0.00029598,2]
[391151070,1760398240952,-150.0,0.00029598,2]
[391151071,1760398240961,-168.46114622,0.00029598,2]
[391151072,1760398240970,-673.17074031,0.00029598,2]
[391151073,1760398240980,-150.0,0.00029598,2]
[391151074,1760398240990,-150.0,0.00029598,2]
[391151075,1760398240999,-200.0,0.00029598,2]
[391151076,1760398241010,-150.0,0.00029598,2]
[391151077,1760398241019,-150.0,0.00029598,2]
[391151078,1760398241028,-500.0,0.00029598,2]
[391151079,1760398241038,-617.49,0.00029625,2]
[391151080,1760398241053,-617.49,0.00029625,2]
[391151081,1760398241073,-5791.15066468,0.00029625,3]
[391151082,1760398241082,-1078.0,0.0002963,3]
[391151083,1760398241092,-151.0,0.00029632,7]
[391151084,1760398241102,-42170.3364282,0.00029633,2]
[391151085,1760398241113,-358.13532908,0.00029634,2]
[391151086,1760398241122,-200.0,0.00029634,2]
[391151087,1760398241131,-1000.0,0.00029634,3]
[391151088,1760398241141,-1000.0,0.00029634,3]
[391151089,1760398241150,-1000.0,0.00029634,3]
[391151090,1760398241160,-1000.0,0.00029634,3]
[391151091,1760398241169,-200.0,0.00029634,2]
[391151092,1760398241178,-1000.0,0.00029634,120]
[391151093,1760398241187,-1233.0,0.00029634,3]
[391151094,1760398241196,-151.0,0.00029634,3]
[391151095,1760398241205,-151.0,0.00029634,3]
[391151096,1760398241215,-151.0,0.00029634,3]
[391151097,1760398241224,-151.0,0.00029634,3]
[391151098,1760398241233,-1577.78698,0.00029634,2]
[391151099,1760398241241,-86867.2599702,0.00029635,3]
[391151100,1760398241250,-5791.15066468,0.00029635,3]
[391151101,1760398241259,-1008.0,0.00029635,3]
[391151102,1760398241269,-2000.0,0.00029635,120]
[391151103,1760398241279,-5791.15066468,0.00029642,3]
[391151104,1760398241288,-300.0,0.00029643,42]
[391151105,1760398241297,-1223.0,0.00029644,2]
[391151106,1760398241306,-169.53,0.00029644,3]
[391151107,1760398241315,-151.0,0.00029644,2]
[391151108,1760398241324,-173668.72638437,0.00029645,2]
[391151109,1760398241333,-1000.0,0.00029645,7]
[391151110,1760398241343,-150.0,0.00029645,30]
[391151111,1760398241352,-151.0,0.00029645,30]
[391151112,1760398241361,-151.0,0.00029645,30]
[391151113,1760398241370,-151.0,0.00029645,30]
[391151114,1760398241379,-256.339908,0.00029645,30]
[391151115,1760398241388,-151.0,0.00029645,30]
[391151116,1760398241398,-256.339908,0.00029645,30]
[391151117,1760398241407,-256.339908,0.00029645,30]
[391151118,1760398241421,-151.0,0.00029645,30]
[391151119,1760398241433,-256.339908,0.00029645,30]
[391151120,1760398241443,-151.0,0.00029645,30]
[391151121,1760398241454,-151.0,0.00029645,30]
[391151122,1760398241464,-152.875373,0.00029645,30]
[391151123,1760398241475,-151.0,0.00029645,30]
[391151124,1760398241485,-151.0,0.00029645,30]
[391151125,1760398241497,-151.0,0.00029645,30]
[391151126,1760398241509,-151.0,0.00029645,30]
[391151127,1760398241519,-151.0,0.00029645,30]
[391151128,1760398241530,-189.178397,0.00029645,30]
[391151129,1760398241540,-189.178397,0.00029645,30]
[391151130,1760398241550,-151.0,0.00029645,30]
[391151131,1760398241560,-151.0,0.00029645,30]
[391151132,1760398241570,-189.178397,0.00029645,30]
[391151133,1760398241580,-151.0,0.00029645,30]
[391151134,1760398241590,-189.178397,0.00029645,30]
[391151135,1760398241603,-151.0,0.00029645,30]
[391151136,1760398241612,-151.0,0.00029645,30]
[391151137,1760398241622,-151.0,0.00029645,30]
[391151138,1760398241632,-151.0,0.00029645,30]
[391151139,1760398241643,-151.0,0.00029645,30]
[391151140,1760398241652,-151.0,0.00029645,30]
[391151141,1760398241662,-151.0,0.00029645,30]
[391151142,1760398241675,-151.0,0.00029645,30]
[391151143,1760398241685,-232.337023,0.00029645,30]
[391151144,1760398241694,-151.0,0.00029645,30]
[391151145,1760398241703,-151.0,0.00029645,30]
[391151146,1760398241712,-151.0,0.00029645,30]
[391151147,1760398241722,-765.803599,0.00029645,30]
[391151148,1760398241731,-151.0,0.00029645,30]
[391151149,1760398241741,-765.803599,0.00029645,30]
[391151150,1760398241750,-151.0,0.00029645,30]
[391151151,1760398241759,-765.803599,0.00029645,30]
[391151152,1760398241768,-151.0,0.00029645,30]
[391151153,1760398241777,-765.803599,0.00029645,30]
[391151154,1760398241787,-151.0,0.00029645,30]
[391151155,1760398241796,-243.480696,0.00029645,30]
[391151156,1760398241806,-243.480696,0.00029645,30]
[391151157,1760398241816,-243.480696,0.00029645,30]
[391151158,1760398241826,-243.480696,0.00029645,30]
[391151159,1760398241835,-151.0,0.00029645,30]
[391151160,1760398241844,-151.0,0.00029645,30]
[391151161,1760398241853,-151.0,0.00029645,30]
[391151162,1760398241862,-151.0,0.00029645,30]
[391151163,1760398241872,-151.0,0.00029645,30]
[391151164,1760398241881,-151.0,0.00029645,30]
[391151165,1760398241890,-208.862424,0.00029645,30]
[391151166,1760398241899,-208.862424,0.00029645,30]
[391151167,1760398241910,-208.862424,0.00029645,30]
[391151168,1760398241921,-208.862424,0.00029645,30]
[391151169,1760398241931,-151.0,0.00029645,30]
[391151170,1760398241943,-151.0,0.00029645,30]
[391151171,1760398241952,-151.0,0.00029645,30]
[391151172,1760398241961,-151.0,0.00029645,30]
[391151173,1760398241970,-293.866952,0.00029645,30]
[391151174,1760398241980,-293.866952,0.00029645,30]
[391151175,1760398241989,-254.771747,0.00029645,30]
[391151176,1760398241998,-151.0,0.00029645,30]
[391151177,1760398242008,-293.866952,0.00029645,30]
[391151178,1760398242017,-254.771747,0.00029645,30]
[391151179,1760398242026,-151.0,0.00029645,30]
[391151180,1760398242036,-293.866952,0.00029645,30]
[391151181,1760398242044,-254.771747,0.00029645,30]
[391151182,1760398242054,-253.752025,0.00029645,30]
[391151183,1760398242064,-151.0,0.00029645,30]
[391151184,1760398242074,-254.771747,0.00029645,30]
[391151185,1760398242083,-151.0,0.00029645,30]
[391151186,1760398242092,-151.0,0.00029645,30]
[391151187,1760398242101,-151.0,0.00029645,30]
[391151188,1760398242110,-151.0,0.00029645,30]
[391151189,1760398242120,-151.0,0.00029645,30]
[391151190,1760398242130,-151.0,0.00029645,30]
[391151191,1760398242140,-151.0,0.00029645,30]
[391151192,1760398242151,-1253.064354,0.00029645,30]
[391151193,1760398242161,-151.0,0.00029645,30]
[391151194,1760398242172,-151.0,0.00029645,30]
[391151195,1760398242181,-1253.064354,0.00029645,30]
[391151196,1760398242190,-151.0,0.00029645,30]
[391151197,1760398242199,-1253.064354,0.00029645,30]
[391151198,1760398242208,-1253.064354,0.00029645,30]
[391151199,1760398242219,-151.0,0.00029645,30]
[391151200,1760398242229,-151.0,0.00029645,30]
[391151201,1760398242239,-151.0,0.00029645,2]
[391151202,1760398242248,-151.0,0.00029645,2]
[391151203,1760398242258,-151.0,0.00029645,2]
[391151204,1760398242267,-151.0,0.00029645,30]
[391151205,1760398242276,-151.0,0.00029645,30]
[391151206,1760398242285,-151.0,0.00029645,30]
[391151207,1760398242294,-151.0,0.00029645,30]
[391151208,1760398242303,-151.0,0.00029645,30]
[391151209,1760398242313,-151.0,0.00029645,30]
[391151210,1760398242322,-151.0,0.00029645,30]
[391151211,1760398242331,-151.0,0.00029645,30]
[391151212,1760398242341,-151.0,0.00029645,30]
[391151213,1760398242351,-151.0,0.00029645,30]
[391151214,1760398242360,-2000.0,0.00029647,2]
[391151215,1760398242370,-500.0,0.00029649,2]
[391151216,1760398242379,-402.0518312,0.00029649,2]
[391151217,1760398242388,-250.21453883,0.00029649,2]
[391151218,1760398242398,-260.46369676,0.00029649,2]
[391151219,1760398242407,-52120.3559821,0.00029649,3]
[391151220,1760398242418,-18133.9030475,0.00029649,3]
[391151221,1760398242427,-17373.451994,0.0002965,3]
[391151222,1760398242436,-13600.4272856,0.0002965,3]
[391151223,1760398242446,-5791.15066468,0.00029651,3]
[391151224,1760398242455,-9066.95152376,0.00029651,3]
[391151225,1760398242464,-4533.47576188,0.00029651,3]
[391151226,1760398242474,-5791.15066468,0.00029652,3]
[391151227,1760398242483,-150.0,0.00029653,2]
[391151228,1760398242492,-200.0,0.00029653,2]
[391151229,1760398242501,-150.0,0.00029653,2]
[391151230,1760398242510,-250.0,0.00029653,2]
[391151231,1760398242519,-150.0,0.00029653,2]
[391151232,1760398242528,-500.0,0.00029653,2]
[391151233,1760398242538,-1000.0,0.00029654,7]
[391151234,1760398242548,-5791.15066468,0.00029659,3]
[391151235,1760398242558,-4533.47576188,0.00029659,3]
[391151236,1760398242567,-151.0,0.00029659,30]
[391151237,1760398242576,-151.0,0.00029659,30]
[391151238,1760398242586,-293.866952,0.00029659,30]
[391151239,1760398242596,-293.866952,0.00029659,30]
[391151240,1760398242606,-254.771747,0.00029659,30]
[391151241,1760398242615,-151.0,0.00029659,30]
[391151242,1760398242624,-293.866952,0.00029659,30]
[391151243,1760398242634,-254.771747,0.00029659,30]
[391151244,1760398242643,-151.0,0.00029659,30]
[391151245,1760398242653,-293.866952,0.00029659,30]
[391151246,1760398242662,-254.771747,0.00029659,30]
[391151247,1760398242674,-151.0,0.00029659,30]
[391151248,1760398242683,-254.771747,0.00029659,30]
[391151249,1760398242693,-151.0,0.00029659,30]
[391151250,1760398242702,-151.0,0.00029659,30]
[391151251,1760398242712,-151.0,0.00029659,30]
[391151252,1760398242721,-151.0,0.00029659,30]
[391151253,1760398242730,-151.0,0.00029659,30]
[391151254,1760398242740,-1253.064354,0.00029659,30]
[391151255,1760398242750,-151.0,0.00029659,30]
[391151256,1760398242759,-151.0,0.00029659,30]
[391151257,1760398242768,-1253.064354,0.00029659,30]
[391151258,1760398242778,-211.49054,0.00029659,30]
[391151259,1760398242787,-1253.064354,0.00029659,30]
[391151260,1760398242796,-1253.064354,0.00029659,30]
[391151261,1760398242805,-151.0,0.00029659,30]
[391151262,1760398242815,-151.0,0.00029659,2]
[391151263,1760398242824,-151.0,0.00029659,2]
[391151264,1760398242833,-151.0,0.00029659,2]
[391151265,1760398242843,-151.0,0.00029659,30]
[391151266,1760398242852,-151.0,0.00029659,30]
[391151267,1760398242861,-151.0,0.00029659,30]
[391151268,1760398242871,-151.0,0.00029659,30]
[391151269,1760398242880,-151.0,0.00029659,30]
[391151270,1760398242890,-151.0,0.00029659,30]
[391151271,1760398242900,-5791.15066468,0.0002966,3]
[391151272,1760398242910,-4533.47576188,0.0002966,3]
[391151273,1760398242921,-17373.451994,0.0002966,3]
[391151274,1760398242934,-18133.9030475,0.0002966,3]
[391151275,1760398242944,-151.0,0.00029661,30]
[391151276,1760398242954,-151.0,0.00029661,30]
[391151277,1760398242964,-151.0,0.00029661,30]
[391151278,1760398242975,-151.0,0.00029661,30]
[391151279,1760398242986,-151.0,0.00029661,30]
[391151280,1760398242996,-151.0,0.00029661,30]
[391151281,1760398243009,-151.0,0.00029661,30]
[391151282,1760398243020,-185.428258,0.00029661,30]
[391151283,1760398243038,-318.266467,0.00029661,30]
[391151284,1760398243061,-185.428258,0.00029661,30]
[391151285,1760398243072,-318.266467,0.00029661,30]
[391151286,1760398243081,-185.428258,0.00029661,30]
[391151287,1760398243093,-318.266467,0.00029661,30]
[391151288,1760398243102,-318.266467,0.00029661,30]
[391151289,1760398243113,-151.0,0.00029661,30]
[391151290,1760398243122,-296.334708,0.00029661,30]
[391151291,1760398243131,-185.428258,0.00029661,30]
[391151292,1760398243141,-296.334708,0.00029661,30]
[391151293,1760398243150,-296.334708,0.00029661,30]
[391151294,1760398243159,-151.0,0.00029661,30]
[391151295,1760398243171,-151.0,0.00029661,30]
[391151296,1760398243181,-296.334708,0.00029661,30]
[391151297,1760398243190,-151.0,0.00029661,30]
[391151298,1760398243200,-188.438198,0.00029661,30]
[391151299,1760398243209,-151.0,0.00029661,30]
[391151300,1760398243219,-151.0,0.00029661,30]
[391151301,1760398243228,-256.339908,0.00029661,30]
[391151302,1760398243237,-151.0,0.00029661,30]
[391151303,1760398243247,-256.339908,0.00029661,30]
[391151304,1760398243256,-256.339908,0.00029661,30]
[391151305,1760398243265,-256.339908,0.00029661,30]
[391151306,1760398243274,-151.0,0.00029661,30]
[391151307,1760398243284,-151.0,0.00029661,30]
[391151308,1760398243294,-151.0,0.00029661,30]
[391151309,1760398243303,-151.0,0.00029661,30]
[391151310,1760398243314,-151.0,0.00029661,30]
[391151311,1760398243324,-151.0,0.00029661,30]
[391151312,1760398243335,-189.178397,0.00029661,30]
[391151313,1760398243345,-189.178397,0.00029661,30]
[391151314,1760398243355,-151.0,0.00029661,30]
[391151315,1760398243364,-189.178397,0.00029661,30]
[391151316,1760398243374,-151.0,0.00029661,30]
[391151317,1760398243384,-189.178397,0.00029661,30]
[391151318,1760398243394,-151.0,0.00029661,30]
[391151319,1760398243404,-151.0,0.00029661,30]
[391151320,1760398243415,-151.0,0.00029661,30]
[391151321,1760398243426,-151.0,0.00029661,30]
[391151322,1760398243436,-151.0,0.00029661,30]
[391151323,1760398243446,-151.0,0.00029661,30]
[391151324,1760398243455,-151.0,0.00029661,30]
[391151325,1760398243465,-151.0,0.00029661,30]
[391151326,1760398243476,-151.0,0.00029661,30]
[391151327,1760398243486,-151.0,0.00029661,30]
[391151328,1760398243498,-765.803599,0.00029661,30]
[391151329,1760398243507,-152.059864,0.00029661,30]
[391151330,1760398243519,-765.803599,0.00029661,30]
[391151331,1760398243530,-151.0,0.00029661,30]
[391151332,1760398243540,-765.803599,0.00029661,30]
[391151333,1760398243550,-765.803599,0.00029661,30]
[391151334,1760398243560,-151.0,0.00029661,30]
[391151335,1760398243570,-243.480696,0.00029661,30]
[391151336,1760398243579,-243.480696,0.00029661,30]
[391151337,1760398243589,-243.480696,0.00029661,30]
[391151338,1760398243599,-243.480696,0.00029661,30]
[391151340,1760398243609,-151.0,0.00029661,30]
[391151341,1760398243619,-151.0,0.00029661,30]
[391151342,1760398243629,-151.0,0.00029661,30]
[391151343,1760398243640,-212.513368,0.00029661,30]
[391151345,1760398243650,-151.0,0.00029661,30]
[391151346,1760398243660,-492.253175,0.00029661,30]
[391151347,1760398243672,-151.0,0.00029661,30]
[391151348,1760398243681,-151.0,0.00029661,30]
[391151349,1760398243690,-151.0,0.00029661,30]
[391151350,1760398243699,-492.253175,0.00029661,30]
[391151351,1760398243709,-151.0,0.00029661,30]
[391151352,1760398243720,-151.0,0.00029661,30]
[391151353,1760398243730,-151.0,0.00029661,30]
[391151354,1760398243741,-492.253175,0.00029661,30]
[391151355,1760398243750,-492.253175,0.00029661,30]
[391151356,1760398243759,-151.0,0.00029661,30]
[391151358,1760398243768,-151.0,0.00029661,30]
[391151360,1760398243778,-151.0,0.00029661,30]
[391151362,1760398243787,-151.0,0.00029661,30]
[391151364,1760398243796,-151.0,0.00029661,30]
[391151366,1760398243805,-151.0,0.00029661,30]
[391151368,1760398243815,-151.0,0.00029661,30]
[391151369,1760398243824,-151.0,0.00029661,30]
[391151370,1760398243834,-169.242504,0.00029661,30]
[391151371,1760398243843,-151.0,0.00029661,30]
[391151372,1760398243853,-151.0,0.00029661,30]
[391151373,1760398243863,-208.862424,0.00029661,30]
[391151374,1760398243872,-151.0,0.00029661,30]
[391151375,1760398243881,-151.0,0.00029661,30]
[391151376,1760398243891,-151.0,0.00029661,30]
[391151377,1760398243900,-208.862424,0.00029661,30]
[391151378,1760398243910,-151.0,0.00029661,30]
[391151379,1760398243920,-151.0,0.00029661,30]
[391151380,1760398243930,-208.862424,0.00029661,30]
[391151381,1760398243943,-151.0,0.00029661,30]
[391151382,1760398243952,-208.862424,0.00029661,30]
[391151383,1760398243961,-275.602109,0.00029661,30]
[391151384,1760398243970,-275.602109,0.00029661,30]